Workbook

Sheet 1
A1: Наименование сырья | C1: 750 | G1: 750 | K1: 750 | O1: 750 | S1: 750 | W1: 750 | AA1: 750 | AE1: 750 | AI1: 750 | AM1: 750
B2: Ст-ть сырья (без НДС) | C2: 0.01 | F2: Расход сырья по плану пр-ва | G2: 0.02 | J2: Расход сырья по плану пр-ва | K2: 0.03 | N2: Расход сырья по плану пр-ва | O2: 0.04 | R2: Расход сырья по плану пр-ва | S2: 0.05 | V2: Расход сырья по плану пр-ва | W2: 0.06 | Z2: Расход сырья по плану пр-ва | AA2: 0.07 | AD2: Расход сырья по плану пр-ва | AE2: 0.08 | AH2: Расход сырья по плану пр-ва | AI2: 0.09 | AL2: Расход сырья по плану пр-ва | AM2: 0.1 | AP2: Расход сырья по плану пр-ва
C3: кол-во (кг) | D3: сумма (с НДС) | E3: сумма (без НДС) | F3: =INDEX(#REF!,MATCH(C2,#REF!,0),0)/1000+INDEX(#REF!,MATCH(C2,#REF!,0),0)/1000+INDEX(#REF!,MATCH(C2,#REF!,0),0)/1000 ->  | G3: кол-во (кг) | H3: сумма (с НДС) | I3: сумма (без НДС) | J3: =INDEX(#REF!,MATCH(G2,#REF!,0),0)/1000+INDEX(#REF!,MATCH(G2,#REF!,0),0)/1000+INDEX(#REF!,MATCH(G2,#REF!,0),0)/1000 ->  | K3: кол-во (кг) | L3: сумма | M3: сумма (без НДС) | N3: =INDEX(#REF!,MATCH(K2,#REF!,0),0)/1000+INDEX(#REF!,MATCH(K2,#REF!,0),0)/1000+INDEX(#REF!,MATCH(K2,#REF!,0),0)/1000 ->  | O3: кол-во (кг) | P3: сумма | Q3: сумма (без НДС) | R3: =INDEX(#REF!,MATCH(O2,#REF!,0),0)/1000+INDEX(#REF!,MATCH(O2,#REF!,0),0)/1000+INDEX(#REF!,MATCH(O2,#REF!,0),0)/1000 ->  | S3: кол-во (кг) | T3: сумма | U3: сумма (без НДС) | V3: =INDEX(#REF!,MATCH(S2,#REF!,0),0)/1000+INDEX(#REF!,MATCH(S2,#REF!,0),0)/1000+INDEX(#REF!,MATCH(S2,#REF!,0),0)/1000 ->  | W3: кол-во (кг) | X3: сумма | Y3: сумма (без НДС) | AA3: кол-во (кг) | AB3: сумма | AC3: сумма (без НДС) | AE3: кол-во (кг) | AF3: сумма | AG3: сумма (без НДС) | AH3: =INDEX(#REF!,MATCH(AE2,#REF!,0),0)/1000+INDEX(#REF!,MATCH(AE2,#REF!,0),0)/1000+INDEX(#REF!,MATCH(AE2,#REF!,0),0)/1000 ->  | AI3: кол-во (кг) | AJ3: сумма | AK3: сумма (без НДС) | AL3: =INDEX(#REF!,MATCH(AI2,#REF!,0),0)/1000+INDEX(#REF!,MATCH(AI2,#REF!,0),0)/1000+INDEX(#REF!,MATCH(AI2,#REF!,0),0)/1000 ->  | AM3: кол-во (кг) | AN3: сумма | AO3: сумма (без НДС) | AP3: =INDEX(#REF!,MATCH(AM2,#REF!,0),0)/1000+INDEX(#REF!,MATCH(AM2,#REF!,0),0)/1000+INDEX(#REF!,MATCH(AM2,#REF!,0),0)/1000 -> 
A5: вода | B5: =INDEX(#REF!,MATCH(A5,#REF!,0)) ->  | C5: 112.5 | D5: =#REF!*C5 ->  | E5: =$B5*C5 ->  | F5: =C5/C$1*1000*F$3 ->  | G5: 185 | H5: =#REF!*G5 ->  | I5: =$B5*G5 ->  | J5: =G5/G$1*1000*J$3 ->  | K5: 185 | L5: =#REF!*K5 ->  | M5: =$B5*K5 ->  | N5: =K5/K$1*1000*N$3 ->  | O5: 185 | P5: =#REF!*O5 ->  | Q5: =$B5*O5 ->  | R5: =O5/O$1*1000*R$3 ->  | S5: 185 | T5: =#REF!*S5 ->  | U5: =$B5*S5 ->  | V5: =S5/S$1*1000*V$3 ->  | W5: 185 | X5: =#REF!*W5 ->  | Y5: =$B5*W5 ->  | Z5: =W5/W$1*1000*Z$3 -> 0 | AA5: 185 | AB5: =#REF!*AA5 ->  | AC5: =$B5*AA5 ->  | AD5: =AA5/AA$1*1000*AD$3 -> 0 | AE5: 185 | AF5: =#REF!*AE5 ->  | AG5: =$B5*AE5 ->  | AH5: =AE5/AE$1*1000*AH$3 ->  | AI5: 185 | AJ5: =#REF!*AI5 ->  | AK5: =$B5*AI5 ->  | AL5: =AI5/AI$1*1000*AL$3 ->  | AM5: =394*0.75 -> 295.5 | AN5: =#REF!*AM5 ->  | AO5: =$B5*AM5 ->  | AP5: =AM5/AM$1*1000*AP$3 -> 
A6: вода | B6: =INDEX(#REF!,MATCH(A6,#REF!,0)) ->  | C6: 37.5 | D6: =#REF!*C6 ->  | E6: =$B6*C6 ->  | F6: =C6/C$1*1000*F$3 ->  | G6: =38.667*0.75 -> 29.00025 | H6: =#REF!*G6 ->  | I6: =$B6*G6 ->  | J6: =G6/G$1*1000*J$3 ->  | K6: =38.667*0.75 -> 29.00025 | L6: =#REF!*K6 ->  | M6: =$B6*K6 ->  | N6: =K6/K$1*1000*N$3 ->  | O6: 27 | P6: =#REF!*O6 ->  | Q6: =$B6*O6 ->  | R6: =O6/O$1*1000*R$3 ->  | S6: =38.667*0.75 -> 29.00025 | T6: =#REF!*S6 ->  | U6: =$B6*S6 ->  | V6: =S6/S$1*1000*V$3 ->  | W6: 29 | X6: =#REF!*W6 ->  | Y6: =$B6*W6 ->  | Z6: =W6/W$1*1000*Z$3 -> 0 | AA6: 29 | AB6: =#REF!*AA6 ->  | AC6: =$B6*AA6 ->  | AD6: =AA6/AA$1*1000*AD$3 -> 0 | AE6: =38.667*0.75 -> 29.00025 | AF6: =#REF!*AE6 ->  | AG6: =$B6*AE6 ->  | AH6: =AE6/AE$1*1000*AH$3 ->  | AI6: =38.667*0.75 -> 29.00025 | AJ6: =#REF!*AI6 ->  | AK6: =$B6*AI6 ->  | AL6: =AI6/AI$1*1000*AL$3 ->  | AM6: =24*0.75 -> 18 | AN6: =#REF!*AM6 ->  | AO6: =$B6*AM6 ->  | AP6: =AM6/AM$1*1000*AP$3 -> 
A7: вода | B7: =INDEX(#REF!,MATCH(A7,#REF!,0)) ->  | C7: 2.7 | D7: =#REF!*C7 ->  | H7: =#REF!*G7 ->  | L7: =#REF!*K7 ->  | P7: =#REF!*O7 ->  | T7: =#REF!*S7 ->  | X7: =#REF!*W7 ->  | Z7: 0 | AB7: =#REF!*AA7 ->  | AD7: 0 | AF7: =#REF!*AE7 ->  | AJ7: =#REF!*AI7 ->  | AN7: =#REF!*AM7 -> 
A8: вода | B8: =INDEX(#REF!,MATCH(A8,#REF!,0)) ->  | C8: 10 | D8: =#REF!*C8 ->  | G8: =13.333*0.75 -> 9.99975 | H8: =#REF!*G8 ->  | K8: =13.333*0.75 -> 9.99975 | L8: =#REF!*K8 ->  | O8: =13.333*0.75 -> 9.99975 | P8: =#REF!*O8 ->  | S8: =13.333*0.75 -> 9.99975 | T8: =#REF!*S8 ->  | W8: 10 | X8: =#REF!*W8 ->  | Z8: 0 | AA8: 10 | AB8: =#REF!*AA8 ->  | AD8: 0 | AE8: =13.334*0.75 -> 10.0005 | AF8: =#REF!*AE8 ->  | AI8: =13.334*0.75 -> 10.0005 | AJ8: =#REF!*AI8 ->  | AM8: =12*0.75 -> 9 | AN8: =#REF!*AM8 -> 
A9: вода | B9: =INDEX(#REF!,MATCH(A9,#REF!,0)) ->  | D9: =#REF!*C9 ->  | H9: =#REF!*G9 ->  | L9: =#REF!*K9 ->  | P9: =#REF!*O9 ->  | T9: =#REF!*S9 ->  | X9: =#REF!*W9 ->  | Z9: 0 | AB9: =#REF!*AA9 ->  | AD9: 0 | AF9: =#REF!*AE9 ->  | AJ9: =#REF!*AI9 ->  | AN9: =#REF!*AM9 -> 
A10: вода | B10: =INDEX(#REF!,MATCH(A10,#REF!,0)) ->  | C10: 0.15 | D10: =#REF!*C10 ->  | G10: =0.2*0.75 -> 0.15 | H10: =#REF!*G10 ->  | K10: =0.2*0.75 -> 0.15 | L10: =#REF!*K10 ->  | O10: =0.2*0.75 -> 0.15 | P10: =#REF!*O10 ->  | S10: =0.2*0.75 -> 0.15 | T10: =#REF!*S10 ->  | W10: 0.15 | X10: =#REF!*W10 ->  | Z10: 0 | AA10: 0.15 | AB10: =#REF!*AA10 ->  | AD10: 0 | AE10: =0.2*0.75 -> 0.15 | AF10: =#REF!*AE10 ->  | AI10: =0.2*0.75 -> 0.15 | AJ10: =#REF!*AI10 ->  | AM10: =0.187*0.75 -> 0.14025 | AN10: =#REF!*AM10 -> 
A11: вода | B11: =INDEX(#REF!,MATCH(A11,#REF!,0)) ->  | C11: 0.75 | D11: =#REF!*C11 ->  | G11: =1*0.75 -> 0.75 | H11: =#REF!*G11 ->  | K11: =1*0.75 -> 0.75 | L11: =#REF!*K11 ->  | O11: =1*0.75 -> 0.75 | P11: =#REF!*O11 ->  | S11: =1*0.75 -> 0.75 | T11: =#REF!*S11 ->  | W11: 0.75 | X11: =#REF!*W11 ->  | Z11: 0 | AA11: 0.75 | AB11: =#REF!*AA11 ->  | AD11: 0 | AE11: =1*0.75 -> 0.75 | AF11: =#REF!*AE11 ->  | AI11: =0.75 -> 0.75 | AJ11: =#REF!*AI11 ->  | AM11: 0.75 | AN11: =#REF!*AM11 -> 
A12: вода | B12: =INDEX(#REF!,MATCH(A12,#REF!,0)) ->  | D12: =#REF!*C12 ->  | H12: =#REF!*G12 ->  | L12: =#REF!*K12 ->  | P12: =#REF!*O12 ->  | T12: =#REF!*S12 ->  | X12: =#REF!*W12 ->  | Z12: 0 | AB12: =#REF!*AA12 ->  | AD12: 0 | AF12: =#REF!*AE12 ->  | AJ12: =#REF!*AI12 ->  | AN12: =#REF!*AM12 -> 
A13: вода | B13: =INDEX(#REF!,MATCH(A13,#REF!,0)) ->  | D13: =#REF!*C13 ->  | H13: =#REF!*G13 ->  | L13: =#REF!*K13 ->  | P13: =#REF!*O13 ->  | T13: =#REF!*S13 ->  | X13: =#REF!*W13 ->  | Z13: 0 | AB13: =#REF!*AA13 ->  | AD13: 0 | AF13: =#REF!*AE13 ->  | AJ13: =#REF!*AI13 ->  | AN13: =#REF!*AM13 -> 
A14: вода | B14: =INDEX(#REF!,MATCH(A14,#REF!,0)) ->  | C14: 2.25 | D14: =#REF!*C14 ->  | G14: =3*0.75 -> 2.25 | H14: =#REF!*G14 ->  | K14: =3*0.75 -> 2.25 | L14: =#REF!*K14 ->  | O14: =3*0.75 -> 2.25 | P14: =#REF!*O14 ->  | S14: =3*0.75 -> 2.25 | T14: =#REF!*S14 ->  | W14: 2.25 | X14: =#REF!*W14 ->  | Z14: 0 | AA14: 2.25 | AB14: =#REF!*AA14 ->  | AD14: 0 | AE14: =3*0.75 -> 2.25 | AF14: =#REF!*AE14 ->  | AI14: =3*0.75 -> 2.25 | AJ14: =#REF!*AI14 ->  | AM14: =3*0.75 -> 2.25 | AN14: =#REF!*AM14 -> 
A15: вода | B15: =INDEX(#REF!,MATCH(A15,#REF!,0)) ->  | D15: =#REF!*C15 ->  | H15: =#REF!*G15 ->  | L15: =#REF!*K15 ->  | P15: =#REF!*O15 ->  | T15: =#REF!*S15 ->  | X15: =#REF!*W15 ->  | Z15: 0 | AB15: =#REF!*AA15 ->  | AD15: 0 | AF15: =#REF!*AE15 ->  | AJ15: =#REF!*AI15 ->  | AN15: =#REF!*AM15 -> 
A16: вода | B16: =INDEX(#REF!,MATCH(A16,#REF!,0)) ->  | D16: =#REF!*C16 ->  | H16: =#REF!*G16 ->  | L16: =#REF!*K16 ->  | P16: =#REF!*O16 ->  | T16: =#REF!*S16 ->  | X16: =#REF!*W16 ->  | Z16: 0 | AB16: =#REF!*AA16 ->  | AD16: 0 | AF16: =#REF!*AE16 ->  | AJ16: =#REF!*AI16 ->  | AM16: 8 | AN16: =#REF!*AM16 -> 
A17: вода | B17: =INDEX(#REF!,MATCH(A17,#REF!,0)) ->  | D17: =#REF!*C17 ->  | H17: =#REF!*G17 ->  | L17: =#REF!*K17 ->  | P17: =#REF!*O17 ->  | T17: =#REF!*S17 ->  | X17: =#REF!*W17 ->  | Z17: 0 | AB17: =#REF!*AA17 ->  | AD17: 0 | AF17: =#REF!*AE17 ->  | AJ17: =#REF!*AI17 ->  | AN17: =#REF!*AM17 -> 
A18: вода | B18: =INDEX(#REF!,MATCH(A18,#REF!,0)) ->  | D18: =#REF!*C18 ->  | H18: =#REF!*G18 ->  | L18: =#REF!*K18 ->  | P18: =#REF!*O18 ->  | T18: =#REF!*S18 ->  | X18: =#REF!*W18 ->  | Z18: 0 | AB18: =#REF!*AA18 ->  | AD18: 0 | AF18: =#REF!*AE18 ->  | AJ18: =#REF!*AI18 ->  | AN18: =#REF!*AM18 -> 
A19: вода | B19: =INDEX(#REF!,MATCH(A19,#REF!,0)) ->  | D19: =#REF!*C19 ->  | H19: =#REF!*G19 ->  | L19: =#REF!*K19 ->  | P19: =#REF!*O19 ->  | T19: =#REF!*S19 ->  | X19: =#REF!*W19 ->  | Z19: 0 | AB19: =#REF!*AA19 ->  | AD19: 0 | AF19: =#REF!*AE19 ->  | AJ19: =#REF!*AI19 ->  | AN19: =#REF!*AM19 -> 
A20: вода | B20: =INDEX(#REF!,MATCH(A20,#REF!,0)) ->  | C20: 0.1 | D20: =#REF!*C20 ->  | G20: =0.133*0.75 -> 0.09975 | H20: =#REF!*G20 ->  | K20: =0.133*0.75 -> 0.09975 | L20: =#REF!*K20 ->  | O20: =0.133*0.75 -> 0.09975 | P20: =#REF!*O20 ->  | S20: =0.133*0.75 -> 0.09975 | T20: =#REF!*S20 ->  | W20: 0.1 | X20: =#REF!*W20 ->  | Z20: 0 | AA20: 0.1 | AB20: =#REF!*AA20 ->  | AD20: 0 | AE20: =0.134*0.75 -> 0.1005 | AF20: =#REF!*AE20 ->  | AI20: =0.134*0.75 -> 0.1005 | AJ20: =#REF!*AI20 ->  | AM20: =0.134*0.75 -> 0.1005 | AN20: =#REF!*AM20 -> 
A21: вода | B21: =INDEX(#REF!,MATCH(A21,#REF!,0)) ->  | D21: =#REF!*C21 ->  | H21: =#REF!*G21 ->  | L21: =#REF!*K21 ->  | P21: =#REF!*O21 ->  | T21: =#REF!*S21 ->  | X21: =#REF!*W21 ->  | Z21: 0 | AB21: =#REF!*AA21 ->  | AD21: 0 | AF21: =#REF!*AE21 ->  | AJ21: =#REF!*AI21 ->  | AN21: =#REF!*AM21 -> 
A22: вода | B22: =INDEX(#REF!,MATCH(A22,#REF!,0)) ->  | C22: 0.4 | D22: =#REF!*C22 ->  | G22: =0.333*0.75 -> 0.24975 | H22: =#REF!*G22 ->  | K22: 0.3 | L22: =#REF!*K22 ->  | O22: 0.3 | P22: =#REF!*O22 ->  | S22: =0.333*0.75 -> 0.24975 | T22: =#REF!*S22 ->  | W22: 0.3 | X22: =#REF!*W22 ->  | Z22: 0 | AA22: 0.3 | AB22: =#REF!*AA22 ->  | AD22: 0 | AE22: =0.4*0.75 -> 0.3 | AF22: =#REF!*AE22 ->  | AI22: =0.334*0.75 -> 0.2505 | AJ22: =#REF!*AI22 ->  | AM22: =0.334*0.75 -> 0.2505 | AN22: =#REF!*AM22 -> 
A23: вода | B23: =INDEX(#REF!,MATCH(A23,#REF!,0)) ->  | C23: 0.9 | D23: =#REF!*C23 ->  | H23: =#REF!*G23 ->  | L23: =#REF!*K23 ->  | P23: =#REF!*O23 ->  | T23: =#REF!*S23 ->  | X23: =#REF!*W23 ->  | Z23: 0 | AB23: =#REF!*AA23 ->  | AD23: 0 | AF23: =#REF!*AE23 ->  | AJ23: =#REF!*AI23 ->  | AM23: 0.6 | AN23: =#REF!*AM23 -> 
A24: вода | B24: =INDEX(#REF!,MATCH(A24,#REF!,0)) ->  | D24: =#REF!*C24 ->  | H24: =#REF!*G24 ->  | L24: =#REF!*K24 ->  | P24: =#REF!*O24 ->  | T24: =#REF!*S24 ->  | X24: =#REF!*W24 ->  | Z24: 0 | AB24: =#REF!*AA24 ->  | AD24: 0 | AF24: =#REF!*AE24 ->  | AJ24: =#REF!*AI24 ->  | AM24: 0.55 | AN24: =#REF!*AM24 -> 
A25: вода | B25: =INDEX(#REF!,MATCH(A25,#REF!,0)) ->  | D25: =#REF!*C25 ->  | G25: =18.667*0.75 -> 14.00025 | H25: =#REF!*G25 ->  | K25: =18.667*0.75 -> 14.00025 | L25: =#REF!*K25 ->  | P25: =#REF!*O25 ->  | S25: =18.667*0.75 -> 14.00025 | T25: =#REF!*S25 ->  | W25: 14 | X25: =#REF!*W25 ->  | Z25: 0 | AA25: 14 | AB25: =#REF!*AA25 ->  | AD25: 0 | AE25: =18.667*0.75 -> 14.00025 | AF25: =#REF!*AE25 ->  | AI25: =18.667*0.75 -> 14.00025 | AJ25: =#REF!*AI25 ->  | AN25: =#REF!*AM25 -> 
A26: вода | B26: =INDEX(#REF!,MATCH(A26,#REF!,0)) ->  | D26: =#REF!*C26 ->  | H26: =#REF!*G26 ->  | L26: =#REF!*K26 ->  | P26: =#REF!*O26 ->  | T26: =#REF!*S26 ->  | X26: =#REF!*W26 ->  | Z26: 0 | AB26: =#REF!*AA26 ->  | AD26: 0 | AF26: =#REF!*AE26 ->  | AJ26: =#REF!*AI26 ->  | AN26: =#REF!*AM26 -> 
A27: вода | B27: =INDEX(#REF!,MATCH(A27,#REF!,0)) ->  | D27: =#REF!*C27 ->  | H27: =#REF!*G27 ->  | L27: =#REF!*K27 ->  | P27: =#REF!*O27 ->  | T27: =#REF!*S27 ->  | X27: =#REF!*W27 ->  | Z27: 0 | AB27: =#REF!*AA27 ->  | AD27: 0 | AF27: =#REF!*AE27 ->  | AJ27: =#REF!*AI27 ->  | AN27: =#REF!*AM27 -> 
A28: вода | B28: =INDEX(#REF!,MATCH(A28,#REF!,0)) ->  | D28: =#REF!*C28 ->  | H28: =#REF!*G28 ->  | L28: =#REF!*K28 ->  | P28: =#REF!*O28 ->  | T28: =#REF!*S28 ->  | X28: =#REF!*W28 ->  | Z28: 0 | AB28: =#REF!*AA28 ->  | AD28: 0 | AF28: =#REF!*AE28 ->  | AJ28: =#REF!*AI28 ->  | AN28: =#REF!*AM28 -> 
A29: вода | B29: =INDEX(#REF!,MATCH(A29,#REF!,0)) ->  | D29: =#REF!*C29 ->  | H29: =#REF!*G29 ->  | L29: =#REF!*K29 ->  | P29: =#REF!*O29 ->  | T29: =#REF!*S29 ->  | X29: =#REF!*W29 ->  | Z29: 0 | AB29: =#REF!*AA29 ->  | AD29: 0 | AF29: =#REF!*AE29 ->  | AJ29: =#REF!*AI29 ->  | AN29: =#REF!*AM29 -> 
A30: вода | B30: =INDEX(#REF!,MATCH(A30,#REF!,0)) ->  | D30: =#REF!*C30 ->  | H30: =#REF!*G30 ->  | L30: =#REF!*K30 ->  | P30: =#REF!*O30 ->  | T30: =#REF!*S30 ->  | X30: =#REF!*W30 ->  | Z30: 0 | AB30: =#REF!*AA30 ->  | AD30: 0 | AF30: =#REF!*AE30 ->  | AJ30: =#REF!*AI30 ->  | AN30: =#REF!*AM30 -> 
A31: вода | B31: =INDEX(#REF!,MATCH(A31,#REF!,0)) ->  | C31: 0.05 | D31: =#REF!*C31 ->  | G31: =0.067*0.75 -> 0.05025 | H31: =#REF!*G31 ->  | K31: =0.067*0.75 -> 0.05025 | L31: =#REF!*K31 ->  | O31: =0.067*0.75 -> 0.05025 | P31: =#REF!*O31 ->  | S31: =0.067*0.75 -> 0.05025 | T31: =#REF!*S31 ->  | W31: 0.05 | X31: =#REF!*W31 ->  | Z31: 0 | AA31: 0.05 | AB31: =#REF!*AA31 ->  | AD31: 0 | AE31: =0.067*0.75 -> 0.05025 | AF31: =#REF!*AE31 ->  | AI31: =0.067*0.75 -> 0.05025 | AJ31: =#REF!*AI31 ->  | AM31: =0.067*0.75 -> 0.05025 | AN31: =#REF!*AM31 -> 
A32: вода | B32: =INDEX(#REF!,MATCH(A32,#REF!,0)) ->  | D32: =#REF!*C32 ->  | H32: =#REF!*G32 ->  | L32: =#REF!*K32 ->  | O32: 14 | P32: =#REF!*O32 ->  | T32: =#REF!*S32 ->  | X32: =#REF!*W32 ->  | Z32: 0 | AB32: =#REF!*AA32 ->  | AD32: 0 | AF32: =#REF!*AE32 ->  | AJ32: =#REF!*AI32 ->  | AN32: =#REF!*AM32 -> 
A33: вода | B33: =INDEX(#REF!,MATCH(A33,#REF!,0)) ->  | D33: =#REF!*C33 ->  | H33: =#REF!*G33 ->  | L33: =#REF!*K33 ->  | P33: =#REF!*O33 ->  | T33: =#REF!*S33 ->  | X33: =#REF!*W33 ->  | Z33: 0 | AB33: =#REF!*AA33 ->  | AD33: 0 | AF33: =#REF!*AE33 ->  | AJ33: =#REF!*AI33 ->  | AN33: =#REF!*AM33 -> 
A34: вода | B34: =INDEX(#REF!,MATCH(A34,#REF!,0)) ->  | D34: =#REF!*C34 ->  | H34: =#REF!*G34 ->  | K34: =0.04*0.75 -> 0.03 | L34: =#REF!*K34 ->  | O34: =0.04*0.75 -> 0.03 | P34: =#REF!*O34 ->  | T34: =#REF!*S34 ->  | X34: =#REF!*W34 ->  | Z34: 0 | AA34: 0.03 | AB34: =#REF!*AA34 ->  | AD34: 0 | AE34: =0.04*0.75 -> 0.03 | AF34: =#REF!*AE34 ->  | AJ34: =#REF!*AI34 ->  | AN34: =#REF!*AM34 -> 
A35: вода | B35: =INDEX(#REF!,MATCH(A35,#REF!,0)) ->  | D35: =#REF!*C35 ->  | H35: =#REF!*G35 ->  | L35: =#REF!*K35 ->  | P35: =#REF!*O35 ->  | T35: =#REF!*S35 ->  | X35: =#REF!*W35 ->  | Z35: 0 | AB35: =#REF!*AA35 ->  | AD35: 0 | AF35: =#REF!*AE35 ->  | AJ35: =#REF!*AI35 ->  | AN35: =#REF!*AM35 -> 
A36: вода | B36: =INDEX(#REF!,MATCH(A36,#REF!,0)) ->  | D36: =#REF!*C36 ->  | H36: =#REF!*G36 ->  | L36: =#REF!*K36 ->  | P36: =#REF!*O36 ->  | T36: =#REF!*S36 ->  | X36: =#REF!*W36 ->  | Z36: 0 | AB36: =#REF!*AA36 ->  | AD36: 0 | AF36: =#REF!*AE36 ->  | AJ36: =#REF!*AI36 ->  | AN36: =#REF!*AM36 -> 
A37: вода | B37: =INDEX(#REF!,MATCH(A37,#REF!,0)) ->  | D37: =#REF!*C37 ->  | H37: =#REF!*G37 ->  | L37: =#REF!*K37 ->  | P37: =#REF!*O37 ->  | T37: =#REF!*S37 ->  | X37: =#REF!*W37 ->  | Z37: 0 | AB37: =#REF!*AA37 ->  | AD37: 0 | AF37: =#REF!*AE37 ->  | AJ37: =#REF!*AI37 ->  | AN37: =#REF!*AM37 -> 
A38: вода | B38: =INDEX(#REF!,MATCH(A38,#REF!,0)) ->  | D38: =#REF!*C38 ->  | H38: =#REF!*G38 ->  | L38: =#REF!*K38 ->  | P38: =#REF!*O38 ->  | T38: =#REF!*S38 ->  | X38: =#REF!*W38 ->  | Z38: 0 | AB38: =#REF!*AA38 ->  | AD38: 0 | AF38: =#REF!*AE38 ->  | AJ38: =#REF!*AI38 ->  | AN38: =#REF!*AM38 -> 
A39: вода | B39: =INDEX(#REF!,MATCH(A39,#REF!,0)) ->  | D39: =#REF!*C39 ->  | H39: =#REF!*G39 ->  | L39: =#REF!*K39 ->  | P39: =#REF!*O39 ->  | T39: =#REF!*S39 ->  | X39: =#REF!*W39 ->  | Z39: 0 | AB39: =#REF!*AA39 ->  | AD39: 0 | AF39: =#REF!*AE39 ->  | AJ39: =#REF!*AI39 ->  | AN39: =#REF!*AM39 -> 
A40: вода | B40: =INDEX(#REF!,MATCH(A40,#REF!,0)) ->  | D40: =#REF!*C40 ->  | H40: =#REF!*G40 ->  | L40: =#REF!*K40 ->  | P40: =#REF!*O40 ->  | T40: =#REF!*S40 ->  | X40: =#REF!*W40 ->  | Z40: 0 | AB40: =#REF!*AA40 ->  | AD40: 0 | AF40: =#REF!*AE40 ->  | AJ40: =#REF!*AI40 ->  | AN40: =#REF!*AM40 -> 
A41: вода | B41: =INDEX(#REF!,MATCH(A41,#REF!,0)) ->  | D41: =#REF!*C41 ->  | H41: =#REF!*G41 ->  | L41: =#REF!*K41 ->  | P41: =#REF!*O41 ->  | T41: =#REF!*S41 ->  | X41: =#REF!*W41 ->  | Z41: 0 | AB41: =#REF!*AA41 ->  | AD41: 0 | AF41: =#REF!*AE41 ->  | AJ41: =#REF!*AI41 ->  | AN41: =#REF!*AM41 -> 
A42: вода | B42: =INDEX(#REF!,MATCH(A42,#REF!,0)) ->  | D42: =#REF!*C42 ->  | H42: =#REF!*G42 ->  | L42: =#REF!*K42 ->  | P42: =#REF!*O42 ->  | T42: =#REF!*S42 ->  | X42: =#REF!*W42 ->  | Z42: 0 | AB42: =#REF!*AA42 ->  | AD42: 0 | AF42: =#REF!*AE42 ->  | AJ42: =#REF!*AI42 ->  | AN42: =#REF!*AM42 -> 
A43: вода | B43: =INDEX(#REF!,MATCH(A43,#REF!,0)) ->  | C43: 0.2 | D43: =#REF!*C43 ->  | G43: =0.133*0.75 -> 0.09975 | H43: =#REF!*G43 ->  | K43: =0.133*0.75 -> 0.09975 | L43: =#REF!*K43 ->  | O43: =0.133*0.75 -> 0.09975 | P43: =#REF!*O43 ->  | S43: =0.133*0.75 -> 0.09975 | T43: =#REF!*S43 ->  | X43: =#REF!*W43 ->  | Z43: 0 | AB43: =#REF!*AA43 ->  | AD43: 0 | AF43: =#REF!*AE43 ->  | AJ43: =#REF!*AI43 ->  | AN43: =#REF!*AM43 -> 
A44: вода | B44: =INDEX(#REF!,MATCH(A44,#REF!,0)) ->  | C44: 0.3 | D44: =#REF!*C44 ->  | G44: =0.733*0.75 -> 0.54975 | H44: =#REF!*G44 ->  | K44: =0.733*0.75 -> 0.54975 | L44: =#REF!*K44 ->  | O44: =0.733*0.75 -> 0.54975 | P44: =#REF!*O44 ->  | S44: =0.733*0.75 -> 0.54975 | T44: =#REF!*S44 ->  | W44: 0.55 | X44: =#REF!*W44 ->  | Z44: 0 | AA44: 0.55 | AB44: =#REF!*AA44 ->  | AD44: 0 | AE44: 0.55 | AF44: =#REF!*AE44 ->  | AI44: =0.734*0.75 -> 0.5505 | AJ44: =#REF!*AI44 ->  | AM44: =0.734*0.75 -> 0.5505 | AN44: =#REF!*AM44 -> 
A45: вода | B45: =INDEX(#REF!,MATCH(A45,#REF!,0)) ->  | C45: 0.06 | D45: =#REF!*C45 ->  | G45: =0.08*0.75 -> 0.06 | H45: =#REF!*G45 ->  | L45: =#REF!*K45 ->  | P45: =#REF!*O45 ->  | S45: =0.08*0.75 -> 0.06 | T45: =#REF!*S45 ->  | X45: =#REF!*W45 ->  | Z45: 0 | AB45: =#REF!*AA45 ->  | AD45: 0 | AF45: =#REF!*AE45 ->  | AI45: =0.08*0.75 -> 0.06 | AJ45: =#REF!*AI45 ->  | AM45: =0.08*0.75 -> 0.06 | AN45: =#REF!*AM45 -> 
A46: вода | B46: =INDEX(#REF!,MATCH(A46,#REF!,0)) ->  | D46: =#REF!*C46 ->  | H46: =#REF!*G46 ->  | L46: =#REF!*K46 ->  | P46: =#REF!*O46 ->  | T46: =#REF!*S46 ->  | X46: =#REF!*W46 ->  | Z46: 0 | AB46: =#REF!*AA46 ->  | AD46: 0 | AF46: =#REF!*AE46 ->  | AJ46: =#REF!*AI46 ->  | AN46: =#REF!*AM46 -> 
A47: вода | B47: =INDEX(#REF!,MATCH(A47,#REF!,0)) ->  | D47: =#REF!*C47 ->  | H47: =#REF!*G47 ->  | L47: =#REF!*K47 ->  | P47: =#REF!*O47 ->  | T47: =#REF!*S47 ->  | X47: =#REF!*W47 ->  | Z47: 0 | AB47: =#REF!*AA47 ->  | AD47: 0 | AF47: =#REF!*AE47 ->  | AJ47: =#REF!*AI47 ->  | AN47: =#REF!*AM47 -> 
A48: вода | B48: =INDEX(#REF!,MATCH(A48,#REF!,0)) ->  | D48: =#REF!*C48 ->  | H48: =#REF!*G48 ->  | L48: =#REF!*K48 ->  | P48: =#REF!*O48 ->  | T48: =#REF!*S48 ->  | X48: =#REF!*W48 ->  | Z48: 0 | AB48: =#REF!*AA48 ->  | AD48: 0 | AF48: =#REF!*AE48 ->  | AJ48: =#REF!*AI48 ->  | AN48: =#REF!*AM48 -> 
A49: вода | B49: =INDEX(#REF!,MATCH(A49,#REF!,0)) ->  | D49: =#REF!*C49 ->  | H49: =#REF!*G49 ->  | L49: =#REF!*K49 ->  | P49: =#REF!*O49 ->  | T49: =#REF!*S49 ->  | X49: =#REF!*W49 ->  | Z49: 0 | AB49: =#REF!*AA49 ->  | AD49: 0 | AF49: =#REF!*AE49 ->  | AJ49: =#REF!*AI49 ->  | AN49: =#REF!*AM49 -> 
A50: вода | B50: =INDEX(#REF!,MATCH(A50,#REF!,0)) ->  | C50: 0.07 | D50: =#REF!*C50 ->  | G50: =0.093*0.75 -> 0.06975 | H50: =#REF!*G50 ->  | K50: =0.093*0.75 -> 0.06975 | L50: =#REF!*K50 ->  | O50: =0.093*0.75 -> 0.06975 | P50: =#REF!*O50 ->  | S50: =0.093*0.75 -> 0.06975 | T50: =#REF!*S50 ->  | W50: 0.08 | X50: =#REF!*W50 ->  | Z50: 0 | AB50: =#REF!*AA50 ->  | AD50: 0 | AE50: =0.093*0.75 -> 0.06975 | AF50: =#REF!*AE50 ->  | AI50: =0.093*0.75 -> 0.06975 | AJ50: =#REF!*AI50 ->  | AM50: =0.093*0.75 -> 0.06975 | AN50: =#REF!*AM50 -> 
A51: вода | B51: =#REF!/118*100 -> 
